Cogmind - Beta 13 @@@ ROGUE MODE // 2024.04.07 @ 19:20:30 Player: ChromeKnight Result: Destroyed by P-80 Master with Gamma Rifle Performance ------------- Evolutions (8) 4000 Regions Visited (16) 3200 Robots Destroyed (173) 865 Value Destroyed (7330) 7330 Prototype IDs (16) 320 Alien Tech Used (3) 600 Bonus (2728) 2728 TOTAL SCORE: 19043 Bonus ------- High Alert Combat Kills 1337 Follower Combat Kills 1586 Network Hubs Disabled 400 A7 Reached Mainframe 300 Met R17 at Cetus 500 Scanned by Researcher 500 Friendly Fire -1895 Cogmind --------- Core Integrity 0/1450 Matter 201/300 Energy 100/100 System Corruption 15% Temperature Cool (1) Movement Flying (45) Location -2/Research Parts ------- > --- POWER (2) -------- (None) > --- PROPULSION (7) --- Impulse Thruster Array > --- UTILITY (10) ----- Advanced Signal Interpreter Advanced Target Analyzer Advanced Target Analyzer System Shield > --- WEAPON (4) ------- (None) > --- INVENTORY (5) ---- Micro Antimatter Reactor Centrium Leg Advanced Force Field Advanced Force Field Improved Hacking Suite Peak State ------------ > --- POWER ------------ Micro Antimatter Reactor Light Quantum Reactor > --- PROPULSION ------- Flexi-carbon Leg Myomer Leg Myomer Leg Heavy Armored Exoskeleton > --- UTILITY ---------- Advanced Cooling System Advanced Coolant Injector Advanced Coolant Injector Advanced Signal Interpreter Advanced Target Analyzer Advanced Target Analyzer Improved Phase Shifter Advanced Force Field > --- WEAPON ----------- Sigix Broadsword Sigix Broadsword > --- INVENTORY -------- Light Antimatter Reactor Light Antimatter Reactor Micro Antimatter Reactor Enhanced Quantum Rifle Nova Cannon [Rating: 181] Favorites ----------- Power Antimatter Reactor Engine Heavy Ion Engine Power Core Light Nuclear Core Reactor Antimatter Reactor Propulsion Light Treads Treads Light Treads Leg Myomer Leg Wheel Armored Huge Wheel Hover Unit Gravmag Array Flight Unit VTOL Module Utility Advanced Signal Interpreter Device Improved Sensor Array Storage Large Storage Unit Processor Advanced Signal Interpreter Hackware Advanced Hacking Suite Protection Centrium Medium Armor Plating Artifact Phase Redirector Weapon Greatsword Energy Gun Advanced Variable Charge Gun Energy Cannon Nova Cannon Ballistic Gun Assault Rifle Ballistic Cannon Assault Cannon Launcher Fusion Bomb Launcher Impact Weapon Powered Hammer Slashing Weapon Greatsword Piercing Weapon Enhanced Force Lance Special Melee Weapon Improved Datajack Build | -11 -10 -10 -10 -9 -8 -7 -6 -5 -5 -5 -5 -5 -4 -3 -3 -2 ------- Run | Yrd Mat Min Exi Min Mat Fac Fac Fac Ext Cet Arc Hub Fac Res Qua Res Slots Evolved 16 | . . . . . 4 2 2 2 . . . . 2 2 . 2 Power 1 | . . . . . . . . . . . . . . 1 . . Propulsion 5 | . . . . . 1 . 2 . . . . . 2 . . . Utility 8 | . . . . . 1 2 . 2 . . . . . 1 . 2 Weapon 2 | . . . . . 2 . . . . . . . . . . . Parts Attached 275 | 6 9 . . . 29 56 18 13 15 14 1 13 17 10 62 12 Power 29 | 1 2 . . . 2 6 3 . 3 1 . 1 2 1 6 1 Engine 8 | 1 1 . . . 2 2 . . 2 . . . . . . . Core 7 | . 1 . . . . 1 2 . 1 . . . 1 1 . . Reactor 14 | . . . . . . 3 1 . . 1 . 1 1 . 6 1 Propulsion 70 | 2 3 . . . 10 13 5 1 4 1 1 2 6 4 16 2 Treads 15 | . 3 . . . 10 2 . . . . . . . . . . Leg 21 | 2 . . . . . 3 . . . . . . . . 16 . Wheel 2 | . . . . . . 2 . . . . . . . . . . Hover 23 | . . . . . . 6 5 1 4 1 1 2 1 2 . . Flight 9 | . . . . . . . . . . . . . 5 2 . 2 Utility 92 | 1 3 . . . 6 19 4 9 4 8 . 4 6 2 24 2 Device 32 | . 1 . . . 1 4 1 5 1 1 . 1 1 1 14 1 Storage 9 | 1 2 . . . . 4 . 1 . 1 . . . . . . Processor 13 | . . . . . 3 3 1 1 1 1 . . 1 . 2 . Hackware 4 | . . . . . . . . . . . . 2 1 . . 1 Protection 32 | . . . . . 2 8 2 2 2 5 . 1 3 1 6 . Artifact 2 | . . . . . . . . . . . . . . . 2 . Weapon 84 | 2 1 . . . 11 18 6 3 4 4 . 6 3 3 16 7 Energy Gun 21 | . 1 . . . . 3 . . . 2 . 5 . . 10 . Energy Cannon 2 | . . . . . . . . . . . . . . . 2 . Ballistic Gun 26 | 2 . . . . 8 8 3 1 . 1 . 1 2 . . . Ballistic Cannon 3 | . . . . . 3 . . . . . . . . . . . Launcher 5 | . . . . . . . . . . . . . . . . 5 Special Weapon . | . . . . . . . . . . . . . . . . . Impact Weapon 4 | . . . . . . 2 1 . . . . . 1 . . . Slashing Weapon 16 | . . . . . . 4 2 2 4 1 . . . . 1 2 Piercing Weapon 6 | . . . . . . . . . . . . . . 3 3 . Special Melee Weapon 1 | . . . . . . 1 . . . . . . . . . . Unidentified Prototypes 13 | . . . . . 1 2 . . . 6 . . . 1 3 . Corrupted Parts 3 | . . . . . . 1 . . . . . 2 . . . . System Corruption 12 | . . . . . . 4 . . . . . 8 . . . . Parts Lost 70 | . 1 . . . 4 2 . . 5 1 1 4 5 . 28 19 Power 10 | . 1 . . . . . . . 1 . . 1 1 . 4 2 Propulsion 19 | . . . . . 3 . . . . . 1 2 2 . 6 5 Utility 26 | . . . . . 1 1 . . 2 1 . . 2 . 14 5 Weapon 15 | . . . . . . 1 . . 2 . . 1 . . 4 7 Highest Loss Streak 15 | . 1 . . . 2 1 . . 5 1 1 2 3 . 11 15 To Critical Strikes . | . . . . . . . . . . . . . . . . . Average Slot Usage (%) 79 | . 96 100 100 100 93 80 96 76 65 72 70 63 59 55 79 53 Engine 3 | . 4 14 14 14 9 2 . . 3 2 . . . 4 . . Core 1 | . 9 . . . . . 4 5 . . . . 2 4 . . Reactor 2 | . . . . . . 3 1 . . 2 5 4 1 . 7 5 Treads 8 | . 26 28 28 28 24 8 . . . . . . . . . . Leg 3 | . 1 . . . . 3 . . . . . . . . 20 12 Wheel 1 | . . . . . . 3 . . . . . . . . . . Hover 7 | . . . . . . 2 29 17 19 19 17 16 5 13 1 . Device 8 | . 11 14 14 14 1 7 7 16 9 5 5 2 3 . 16 15 Storage 7 | . 14 14 14 14 9 9 6 5 5 7 11 5 5 4 2 . Processor 7 | . . . . . 6 6 6 10 11 13 11 7 6 9 5 13 Protection 6 | . . . . . 6 9 11 5 5 10 11 7 4 3 4 . Energy Gun 3 | . 11 14 14 14 . 1 . . . . . 1 7 . 12 . Ballistic Gun 7 | . 16 14 14 14 32 4 20 . . . . . 1 . . . Ballistic Cannon 2 | . . . . . 3 5 . . . . . . . . . . Slashing Weapon 3 | . . . . . . 5 3 10 7 5 5 1 . . . 4 Naked Turns . | . . . . . . . . . . . . . . . . . Heaviest Build 130 | 14 91 89 89 89 111 130 45 50 50 65 54 54 59 41 99 68 Greatest Support 160 | 20 40 40 40 40 84 84 51 52 52 55 57 57 32 32 160 160 Greatest Overweight (x) 12 | 1 4 2 2 2 4 4 . . 1 1 1 1 12 4 1 1 Average Overweight (x) . | . . 2 2 2 1 . . . . . . . . . . . Largest Inventory Capacity 25 | 8 25 25 25 25 25 25 10 15 15 15 15 15 15 15 15 5 Average Capacity 15 | 6 18 25 25 25 25 15 10 13 15 15 15 15 15 15 12 5 Most Carried 25 | . 14 15 15 16 25 25 10 13 15 15 15 15 15 15 15 5 Average Carried 13 | . 8 14 15 15 19 15 9 11 10 14 14 14 12 14 10 4 Final Capacity 25 | 8 25 25 25 25 25 10 10 15 15 15 15 15 15 15 5 5 Final Carried 25 | . 14 15 15 16 25 10 10 13 15 15 14 13 15 15 5 5 Class Distribution -------------------- 31% | Mutant 14% | Scavenger-Mutant 9% | Scavenger-Tank 8% | Gladiator 7% | Tank 6% | Gunner 5% | Scavenger-Gunner 5% | Skirmisher 4% | Sprinter 3% | Commander-Gladiator Dominant Class ---------------- Mutant | -10/Materials Mutant | -10/Mines Mutant | -10/Exiles Mutant | -9/Mines Gunner | -8/Materials Mutant | -7/Factory Skirmisher | -6/Factory Gladiator | -5/Factory Sprinter | -5/Extension Scavenger-Mutant | -5/Cetus Scavenger-Mutant | -5/Archives Scavenger-Mutant | -5/Hub_04(d) Scavenger-Mutant | -4/Factory Mutant | -3/Research Scavenger-Tank | -3/Quarantine Scavenger-Mutant | -2/Research Resources | -11 -10 -10 -10 -9 -8 -7 -6 -5 -5 -5 -5 -5 -4 -3 -3 -2 ----------- Run | Yrd Mat Min Exi Min Mat Fac Fac Fac Ext Cet Arc Hub Fac Res Qua Res Matter Collected 4221 | 199 288 . . 21 772 1039 231 142 140 150 5 211 183 . 733 107 Remotely . | . . . . . . . . . . . . . . . . . Salvage Created 8859 | . 358 . . 72 706 1721 472 397 627 118 . 447 189 . 2590 1162 Parts 449 | . 27 . . 4 41 107 21 13 23 6 . 16 7 . 142 42 Haulers Intercepted 8 | . 2 . . . 2 4 . . . . . . . . . . Recyclers Shooed 2 | . 1 . . . . . . . 1 . . . . . . . Parts Field Recycled . | . . . . . . . . . . . . . . . . . Retrieved Matter . | . . . . . . . . . . . . . . . . . Parts Self-Destructed . | . . . . . . . . . . . . . . . . . Prevented . | . . . . . . . . . . . . . . . . . Kills | -11 -10 -10 -10 -9 -8 -7 -6 -5 -5 -5 -5 -5 -4 -3 -3 -2 ------- Run | Yrd Mat Min Exi Min Mat Fac Fac Fac Ext Cet Arc Hub Fac Res Qua Res Combat Hostiles Destroyed 118 | . 4 . . 2 9 25 1 5 10 . . 5 5 . 36 16 Melee 52 | . . . . . . 17 . 5 10 . . . . . 8 12 Guns 51 | . 4 . . 2 9 4 1 . . . . . 5 . 26 . Cannons 6 | . . . . . . 4 . . . . . . . . 2 . AOE 6 | . . . . . . . . . . . . 2 . . . 4 Classes Destroyed 17 | . 6 . . . 4 2 . . . . . 1 . . 3 1 Worker 12 | . 1 . . . 1 3 1 . . . . 2 . . 1 3 Builder 3 | . . . . . 1 1 . . . . . . . . . 1 Tunneler 3 | . . . . . . . . . . . . 2 . . . 1 Hauler 8 | . 2 . . . 2 4 . . . . . . . . . . Recycler 10 | . 1 . . . 1 1 3 1 . . . . . . 1 2 Mechanic 2 | . . . . . 1 . . 1 . . . . . . . . Operator 3 | . 1 . . . . 1 1 . . . . . . . . . Watcher 13 | . 1 . . . . 4 . 1 2 1 . 2 2 . . . Swarmer 27 | . . . . . . 3 . 4 4 . . . 5 . 6 5 Saboteur 1 | . . . . . . . . . . . . . . . 1 . Grunt 42 | . 4 . . 2 3 7 . . 2 . . 5 . . 14 5 Brawler 2 | . . . . . . . . . . . . . . . 1 1 Duelist 1 | . . . . . . . . . . . . . . . . 1 Sentry 16 | . . . . . 4 5 1 1 4 . . . . . 1 . Specialist 3 | . . . . . . . . . . . . . . . 3 . Hunter 11 | . . . . . 2 2 . . . . . . . . 5 2 Programmer 15 | . . . . . . 8 . . . . . . . . 5 2 Best Kill Streak 9 | . 3 . . 2 3 4 3 5 3 1 . 9 5 . 7 8 Combat Bots Only 6 | . 2 . . 2 3 4 1 3 3 . . 5 5 . 6 6 Max Kills in Single Turn 5 | . 1 . . 1 1 1 1 1 1 1 . 5 2 . 3 5 Gunslinging 2 | . . . . . . . . . . . . . 1 . 2 . Exploded 4 | . . . . . . . . . . . . 2 . . . 4 Melee 1 | . . . . . . 1 . 1 1 . . . . . 1 1 Uniques/NPCs Destroyed 1 | . . . . . . . . . . 1 . . . . . . A7 (-5/Cetus) Combat | -11 -10 -10 -10 -9 -8 -7 -6 -5 -5 -5 -5 -5 -4 -3 -3 -2 -------- Run | Yrd Mat Min Exi Min Mat Fac Fac Fac Ext Cet Arc Hub Fac Res Qua Res Hostile Shots Fired 1582 | . 31 . . 9 80 324 34 30 65 14 13 78 56 14 515 319 Missed 538 | . 5 . . 2 27 116 21 15 18 5 7 26 20 4 150 122 Damage Taken 20180 | . 358 . . 88 853 2472 217 317 1155 273 216 1428 774 240 6911 4878 Core 3246 | . 73 . . 12 46 210 39 68 180 26 30 138 185 47 741 1451 Absorbed by Shields 354 | . . . . . . 148 . . 4 62 . . . . . 140 Redirected to Core 224 | . . . . . . . . . . . . . . . 224 . Redirected to Shielding 154 | . . . . . 22 97 35 . . . . . . . . . Regen/Repaired (Parts) 1520 | . . . . . . 102 28 . . 163 7 159 60 148 165 688 Core Remaining (%) 74 | 100 . . . 66 91 70 95 . . . . 55 83 . 39 . Volleys Fired 209 | . 34 . . 7 35 23 4 . . . . 7 9 . 88 2 Largest 4 | . 2 . . 2 4 4 3 . . . . 1 2 . 4 3 Hottest 376 | . 85 . . 85 160 160 90 . . . . 225 160 . 376 156 Shots Fired 597 | . 68 . . 14 140 89 12 . . . . 7 13 . 248 6 Gun 539 | . 68 . . 14 137 51 12 . . . . 7 13 . 237 . Cannon 52 | . . . . . 3 38 . . . . . . . . 11 . Launcher 6 | . . . . . . . . . . . . . . . . 6 Special . | . . . . . . . . . . . . . . . . . Kinetic 283 | . 43 . . 7 140 74 12 . . . . . 7 . . . Thermal 287 | . 25 . . 7 . . . . . . . 7 6 . 242 . Explosive 6 | . . . . . . . . . . . . . . . . 6 Electromagnetic 21 | . . . . . . 15 . . . . . . . . 6 . Robot Hit Streak 16 | . 9 . . 10 11 9 6 . . . . 2 4 . 16 1 Robot Miss Streak 6 | . 2 . . 1 5 6 2 . . . . 1 2 . 4 3 Penetration Max 1 | . . . . . . . . . . . . . 1 . . . Secondary Targets 12 | . 1 . . . . . . . . . . . 1 . 10 . Max Gunslinging Chain 2 | . 1 . . . . . . . . . . . 1 . 2 . Shots Hit Robots 557 | . 41 . . 12 78 108 15 20 37 10 2 3 10 . 178 43 Core Hits 273 | . 16 . . 5 36 52 10 6 16 3 . 7 6 . 81 35 Critical Kills . | . . . . . . . . . . . . . . . . . Critical Parts Destroyed 1 | . . . . . . . . . . . . . 1 . . . Critical Strikes 33 | . . . . . . 7 . 3 9 1 . . 1 . 4 8 Burn 1 | . . . . . . . . . . . . . . . 1 . Smash 1 | . . . . . . . . . . . . . 1 . . . Sever 28 | . . . . . . 7 . 3 9 1 . . . . . 8 Impale 3 | . . . . . . . . . . . . . . . 3 . Melee Attacks 343 | . . . . . . 83 31 32 59 18 3 2 10 4 45 56 Impact 24 | . . . . . . 2 11 . . . . . 10 1 . . Slashing 273 | . . . . . . 81 20 32 59 18 3 2 . . 2 56 Piercing 46 | . . . . . . . . . . . . . . 3 43 . Sneak Attacks 29 | . . . . . . 10 4 2 2 6 1 . . . 2 2 Combat Hostiles 2 | . . . . . . 1 . . 1 . . . . . . . Follow-up Attacks 17 | . . . . . . 4 . 3 1 . . . . . 5 4 Damage Inflicted 24108 | . 571 . . 169 1042 4374 696 1271 2212 701 152 1407 342 . 6653 4518 Guns 7858 | . 571 . . 169 1042 741 127 . . . . 77 199 . 4932 . Cannons 672 | . . . . . . 480 . . . . . . . . 192 . Explosions 2639 | . . . . . . . . . . . . 1212 . . 103 1324 Melee 12793 | . . . . . . 3147 569 1271 2212 701 120 39 143 . 1426 3165 Ramming 146 | . . . . . . 6 . . . . 32 79 . . . 29 Kinetic 2642 | . 300 . . 74 1042 976 127 . . . . . 123 . . . Thermal 5627 | . 271 . . 95 . . . . . . . 77 76 . 5108 . Explosive 1427 | . . . . . . . . . . . . . . . 103 1324 Electromagnetic 1473 | . . . . . . 245 . . . . . 1212 . . 16 . Impact 171 | . . . . . . 28 . . . . . . 143 . . . Slashing 11278 | . . . . . . 3119 569 1271 2212 701 120 39 . . 82 3165 Piercing 1344 | . . . . . . . . . . . . . . . 1344 . Highest Corruption 25 | . 1 1 1 1 . 15 . . . . 2 25 . 5 23 15 Average Corruption 8 | . 1 1 1 1 . 9 . . . . 2 8 . 3 10 9 Corruption Purged . | . . . . . . . . . . . . . . . . . Corruption Blocked . | . . . . . . . . . . . . . . . . . Effects 185 | . 6 . 1 2 . 106 . . . . . 12 . 2 45 11 Message Errors 49 | . 1 . . . . 32 . . . . . 3 . . 10 3 Matter Fused 49 | . 2 . . . . 29 . . . . . 3 . 1 13 1 Heat Flow Errors 17 | . 1 . . 1 . 10 . . . . . 1 . 1 3 . Energy Discharges 20 | . 1 . 1 . . 11 . . . . . 3 . . 2 2 Parts Rejected 2 | . . . . . . . . . . . . . . . 1 1 Data Loss (minor) 23 | . 1 . . . . 13 . . . . . 2 . . 7 . Data Loss (major) 5 | . . . . . . 4 . . . . . . . . . 1 Misfires 5 | . . . . . . 3 . . . . . . . . 2 . Alerts 5 | . . . . 1 . 2 . . . . . . . . 1 1 Misdirections 4 | . . . . . . 2 . . . . . . . . . 2 Weapon Failures 6 | . . . . . . . . . . . . . . . 6 . Overload Shots 8 | . . . . . . . . . . . . 3 . . 5 . Overflow Damage 1855 | . . . . . . 497 20 172 310 11 68 124 119 . 230 304 Projectiles . | . . . . . . . . . . . . . . . . . Explosions 279 | . . . . . . . . . . . . 124 . . 91 64 Melee 1576 | . . . . . . 497 20 172 310 11 68 . 119 . 139 240 Knockbacks 18 | . . . . . . 18 . . . . . . . . . . Impact . | . . . . . . . . . . . . . . . . . Kinetic 18 | . . . . . . 18 . . . . . . . . . . Secondary . | . . . . . . . . . . . . . . . . . Self-Inflicted Damage 443 | . . . . . . 3 . . . . 15 148 . . 116 161 Shots 4 | . . . . . . . . . . . . 1 . . 1 2 Rammed 10 | . . . . . . 1 . . . . 2 2 . . . 5 Targets Rammed 12 | . . . . . . 1 . . . . 2 2 . . . 7 Kicked 2 | . . . . . . . . . . . . . . . . 2 Crushed . | . . . . . . . . . . . . . . . . . Highest Temperature 591 | . 152 . . 103 93 429 76 . 20 2 . 591 . 212 199 135 Average Temperature 94 | . 50 . . 36 14 129 28 . 5 2 . 217 . 151 84 66 Received Heat Transfer 2806 | . 246 . . 48 234 481 6 9 171 46 21 159 27 . 986 372 Effects 17 | . . . . . . 11 . . . . . 6 . . . . Shutdowns 2 | . . . . . . 1 . . . . . 1 . . . . Energy Bleed 3 | . . . . . . 1 . . . . . 2 . . . . Interference 6 | . . . . . . 6 . . . . . . . . . . Matter Decay 2 | . . . . . . . . . . . . 2 . . . . Short Circuit 4 | . . . . . . 3 . . . . . 1 . . . . Siege Activations . | . . . . . . . . . . . . . . . . . Robots Corrupted 4 | . . . . . . . . . . . . 4 . . . . Combat Hostiles 3 | . . . . . . . . . . . . 3 . . . . Parts Fried 9 | . . . . . . . . . . 1 . 6 2 . . . Impact Corruptions 7 | . . . . . . 1 . . . . 2 . 4 . . . Robots Melted . | . . . . . . . . . . . . . . . . . Combat Hostiles . | . . . . . . . . . . . . . . . . . Parts Melted 5 | . 1 . . . . . . . 1 . . . 1 . 2 . Heat Transferred 6860 | . 629 . . 222 . . . . . . . 87 111 . 5811 . Parts Sabotaged . | . . . . . . . . . . . . . . . . . Parts Stolen . | . . . . . . . . . . . . . . . . . Parts Stripped . | . . . . . . . . . . . . . . . . . Power Chain Reactions 1 | . . . . . . . . . . . . . . . . 1 Alert | -11 -10 -10 -10 -9 -8 -7 -6 -5 -5 -5 -5 -5 -4 -3 -3 -2 ------- Run | Yrd Mat Min Exi Min Mat Fac Fac Fac Ext Cet Arc Hub Fac Res Qua Res Peak Influence 974 | . 84 24 . 50 122 659 427 363 286 926 472 697 574 312 834 974 Initial 463 | . . 24 . . 19 20 317 177 119 132 290 140 336 206 175 463 Average 274 | . 37 24 . 30 39 219 336 217 109 640 371 468 402 262 592 712 Maximum Alert Level 3 | . . . . . . 2 2 1 1 3 2 2 2 1 3 3 Low Security (%) 48 | 100 100 100 . 100 100 51 . 64 85 3 . 32 . . 5 . Level 1 24 | . . . . . . 29 92 35 14 22 51 . 45 100 15 . Level 2 17 | . . . . . . 19 7 . . 4 48 67 54 . 45 46 Level 3 9 | . . . . . . . . . . 70 . . . . 33 53 Level 4 . | . . . . . . . . . . . . . . . . . Level 5 . | . . . . . . . . . . . . . . . . . High Security . | . . . . . . . . . . . . . . . . . Max Security . | . . . . . . . . . . . . . . . . . Squads Dispatched 51 | . 2 . . . 1 18 1 . 2 1 . 2 2 5 10 7 Investigation 11 | . 1 . . . 1 1 1 . 2 1 . . . 2 . 2 Extermination 12 | . . . . . . 8 . . . . . . . 1 2 1 Reinforcement 17 | . 1 . . . . 8 . . . . . 2 1 2 3 . Assault 4 | . . . . . . . . . . . . . 1 . 2 1 Garrison 7 | . . . . . . 1 . . . . . . . . 3 3 Intercept . | . . . . . . . . . . . . . . . . . Searches Triggered . | . . . . . . . . . . . . . . . . . Construction Impeded 2 | . . . . . . 1 . . . . . . . . 1 . Haulers Reinforced . | . . . . . . . . . . . . . . . . . Active Scanning Responses . | . . . . . . . . . . . . . . . . . Cargo Convoy Interrupts 2 | . . . . . . 1 1 . . . . . . . . . Stealth | -11 -10 -10 -10 -9 -8 -7 -6 -5 -5 -5 -5 -5 -4 -3 -3 -2 --------- Run | Yrd Mat Min Exi Min Mat Fac Fac Fac Ext Cet Arc Hub Fac Res Qua Res Distress Signals 7 | . . . . . . 1 . . 1 2 . 1 . . . 2 Communications Jammed . | . . . . . . . . . . . . . . . . . Distress Signals . | . . . . . . . . . . . . . . . . . Times Spotted 272 | . 10 . . 2 10 42 12 10 19 19 6 21 20 5 54 42 Peak Tracking Total 13 | . 3 . . 2 3 4 9 4 5 5 3 7 10 2 6 13 Tactical Retreats 24 | . . . . . . 3 2 2 1 . . 2 3 . 2 9 Traps | -11 -10 -10 -10 -9 -8 -7 -6 -5 -5 -5 -5 -5 -4 -3 -3 -2 ------- Run | Yrd Mat Min Exi Min Mat Fac Fac Fac Ext Cet Arc Hub Fac Res Qua Res Traps Triggered 16 | . 3 . . . 1 2 1 1 4 . . 4 . . . . Indirectly . | . . . . . . . . . . . . . . . . . Trap Hack Attempts . | . . . . . . . . . . . . . . . . . Triggered . | . . . . . . . . . . . . . . . . . Disarmed . | . . . . . . . . . . . . . . . . . Reprogrammed 1 | . . . . . . . . . . . . 1 . . . . Reused . | . . . . . . . . . . . . . . . . . Traps Extracted . | . . . . . . . . . . . . . . . . . Installed . | . . . . . . . . . . . . . . . . . Triggered 2 | . . . . . . 2 . . . . . . . . . . Machines | -11 -10 -10 -10 -9 -8 -7 -6 -5 -5 -5 -5 -5 -4 -3 -3 -2 ---------- Run | Yrd Mat Min Exi Min Mat Fac Fac Fac Ext Cet Arc Hub Fac Res Qua Res Machines Disabled 27 | . . . . . . 5 . . 2 4 1 5 . . 10 . Max in Single Turn 5 | . . . . . . 1 . . . 1 . 5 . . 1 . Garrison Access 3 | . . . . . . 1 . . . . . 1 . . 1 . Network Hub 2 | . . . . . . . . . . . . 2 . . . . Machines Repaired . | . . . . . . . . . . . . . . . . . Machines Dismantled . | . . . . . . . . . . . . . . . . . Machines Sabotaged . | . . . . . . . . . . . . . . . . . Overloaded Fab Kills 2 | . . . . . . . . . . . . . . . . 2 Hacking | -11 -10 -10 -10 -9 -8 -7 -6 -5 -5 -5 -5 -5 -4 -3 -3 -2 --------- Run | Yrd Mat Min Exi Min Mat Fac Fac Fac Ext Cet Arc Hub Fac Res Qua Res Machines Accessed 55 | . . . . . 1 8 8 3 9 1 . 9 2 5 6 3 Terminals 41 | . . . . . 1 3 5 3 9 1 . 8 2 3 5 1 Fabricators 5 | . . . . . . 3 1 . . . . . . . . 1 Repair Stations 5 | . . . . . . 1 2 . . . . . . 2 . . Recycling Units . | . . . . . . . . . . . . . . . . . Scanalyzers . | . . . . . . . . . . . . . . . . . Garrison Access 4 | . . . . . . 1 . . . . . 1 . . 1 1 Total Hacks 154 | . . . . . 2 17 21 7 17 4 . 25 14 17 15 15 Successful 60 | . . . . . 2 8 9 2 7 . . 13 9 4 4 2 Failed 94 | . . . . . . 9 12 5 10 4 . 12 5 13 11 13 Catastrophic 30 | . . . . . . 3 3 2 . 2 . 5 3 4 4 4 Database Lockouts . | . . . . . . . . . . . . . . . . . Manual 63 | . . . . . . 3 8 4 . 1 . 18 11 8 4 6 Terminals 119 | . . . . . 2 4 12 7 17 4 . 24 14 14 13 8 Fabricators 12 | . . . . . . 5 2 . . . . . . . . 5 Repair Stations 15 | . . . . . . 5 7 . . . . . . 3 . . Recycling Units . | . . . . . . . . . . . . . . . . . Scanalyzers . | . . . . . . . . . . . . . . . . . Garrison Access 8 | . . . . . . 3 . . . . . 1 . . 2 2 Terminal Hacks 30 | . . . . . 2 1 3 2 7 . . 5 5 1 3 1 Prototype ID Bank 1 | . . . . . . . . . . . . . . . . 1 Open Door 8 | . . . . . . . . . 7 . . . . 1 . . Open DSF 1 | . . . . . . . . 1 . . . . . . . . Level Access Points 2 | . . . . . . . 1 . . . . 1 . . . . Branch Access Points 2 | . . . . . . . . 1 . . . . 1 . . . Emergency Access Points 3 | . . . . . 1 . 1 . . . . . . . 1 . Locate Traps 1 | . . . . . . 1 . . . . . . . . . . Reprogram Traps 1 | . . . . . . . . . . . . 1 . . . . Security Status 1 | . . . . . . . . . . . . . 1 . . . Patrol Status 1 | . . . . . . . . . . . . . 1 . . . Assault Status 1 | . . . . . . . . . . . . . 1 . . . Zone Layout 8 | . . . . . 1 . 1 . . . . 3 1 . 2 . Fabricator Hacks 2 | . . . . . . 2 . . . . . . . . . . Build 2 | . . . . . . 2 . . . . . . . . . . Repair Station Hacks 7 | . . . . . . 3 3 . . . . . . 1 . . Scan Component 4 | . . . . . . 2 2 . . . . . . . . . Repair 2 | . . . . . . 1 1 . . . . . . . . . Refit 1 | . . . . . . . . . . . . . . 1 . . Recycling Unit Hacks . | . . . . . . . . . . . . . . . . . Scanalyzer . | . . . . . . . . . . . . . . . . . Garrison Access Hacks 3 | . . . . . . 1 . . . . . 1 . . 1 . Seal Access 3 | . . . . . . 1 . . . . . 1 . . 1 . Unauthorized Hacks 18 | . . . . . . 1 3 . . . . 7 4 2 . 1 Terminals 16 | . . . . . . . 3 . . . . 7 4 2 . . Track 3 | . . . . . . . . . . . . 1 1 1 . . Assimilate 5 | . . . . . . . 2 . . . . 1 1 1 . . Botnet 6 | . . . . . . . 1 . . . . 4 1 . . . Operators 2 | . . . . . . . . . . . . 1 1 . . . Fabricators 2 | . . . . . . 1 . . . . . . . . . 1 Liberate 1 | . . . . . . 1 . . . . . . . . . . Overload 1 | . . . . . . . . . . . . . . . . 1 Repair Stations . | . . . . . . . . . . . . . . . . . Recycling Units . | . . . . . . . . . . . . . . . . . Scanalyzers . | . . . . . . . . . . . . . . . . . Garrison Access . | . . . . . . . . . . . . . . . . . Data Cores Recovered 2 | . . . . . . . 1 . 1 . . . . . . . Used 1 | . . . . . . . 1 . . . . . . . . . Hacking Detections 40 | . . . . . . 6 8 1 4 2 . 6 2 3 5 3 Full Trace Events 8 | . . . . . . 1 1 . 2 1 . . . 2 . 1 Feedback Events . | . . . . . . . . . . . . . . . . . Feedback Blocked . | . . . . . . . . . . . . . . . . . Robot Schematics Acquired 1 | . . . . . . . . . . . . . . . 1 . Robots Built . | . . . . . . . . . . . . . . . . . Authchips . | . . . . . . . . . . . . . . . . . Time . | . . . . . . . . . . . . . . . . . Total Robot Build Rating . | . . . . . . . . . . . . . . . . . Part Schematics Acquired 2 | . . . . . . . . . . . . . . . 2 . Parts Built 3 | . . . . . . 3 . . . . . . . . . . Authchips . | . . . . . . . . . . . . . . . . . Time 251 | . . . . . . 251 . . . . . . . . . . Total Part Build Rating 18 | . . . . . . 18 . . . . . . . . . . Parts Repaired 2 | . . . . . . 1 1 . . . . . . . . . Time 66 | . . . . . . 44 22 . . . . . . . . . Parts Recycled . | . . . . . . . . . . . . . . . . . Recycled Matter . | . . . . . . . . . . . . . . . . . Retrieved Matter . | . . . . . . . . . . . . . . . . . Retrieved Components . | . . . . . . . . . . . . . . . . . Parts Scanalyzed . | . . . . . . . . . . . . . . . . . Part Schematics Acquired . | . . . . . . . . . . . . . . . . . Parts Damaged . | . . . . . . . . . . . . . . . . . Bothacking | -11 -10 -10 -10 -9 -8 -7 -6 -5 -5 -5 -5 -5 -4 -3 -3 -2 ------------ Run | Yrd Mat Min Exi Min Mat Fac Fac Fac Ext Cet Arc Hub Fac Res Qua Res Used RIF Installer . | . . . . . . . . . . . . . . . . . Robots Hacked . | . . . . . . . . . . . . . . . . . Non-combat . | . . . . . . . . . . . . . . . . . Combat . | . . . . . . . . . . . . . . . . . Robot Hacks Applied . | . . . . . . . . . . . . . . . . . Relay Couplers Released . | . . . . . . . . . . . . . . . . . Fabnet Peak Effective % . | . . . . . . . . . . . . . . . . . Robots Rewired 8 | . . . . . . . . . 8 . . . . . . . Allies Hacked . | . . . . . . . . . . . . . . . . . Hacks Repelled . | . . . . . . . . . . . . . . . . . Allies | -11 -10 -10 -10 -9 -8 -7 -6 -5 -5 -5 -5 -5 -4 -3 -3 -2 -------- Run | Yrd Mat Min Exi Min Mat Fac Fac Fac Ext Cet Arc Hub Fac Res Qua Res Total Allies 27 | . . . . . . 2 1 . 19 4 . . 1 . . . Largest Group 10 | . . . . . . 2 1 . 10 8 3 . 1 . . . Highest-Rated Group 568 | . . . . . . 64 26 . 311 568 283 . 26 . . . Highest-Rated Ally 159 | . . . . . . 32 26 . 159 159 96 . 26 . . . Total Orders . | . . . . . . . . . . . . . . . . . Ally Attacks 207 | . . . . . . 9 . . 54 123 21 . . . . . Total Damage 6173 | . . . . . . 313 . . 1179 3626 1055 . . . . . Kills 36 | . . . . . . 2 . . 9 22 3 . . . . . Allies Corrupted . | . . . . . . . . . . . . . . . . . Allies Melted . | . . . . . . . . . . . . . . . . . Intel | -11 -10 -10 -10 -9 -8 -7 -6 -5 -5 -5 -5 -5 -4 -3 -3 -2 ------- Run | Yrd Mat Min Exi Min Mat Fac Fac Fac Ext Cet Arc Hub Fac Res Qua Res Robot Analysis Total . | . . . . . . . . . . . . . . . . . Derelict Logs Recovered 1 | . . . . 1 . . . . . . . . . . . . Drone Launches . | . . . . . . . . . . . . . . . . . Drone Recoveries . | . . . . . . . . . . . . . . . . . Exploration | -11 -10 -10 -10 -9 -8 -7 -6 -5 -5 -5 -5 -5 -4 -3 -3 -2 ------------- Run | Yrd Mat Min Exi Min Mat Fac Fac Fac Ext Cet Arc Hub Fac Res Qua Res Turns Passed 12660 | 52 793 49 144 362 1373 3906 789 593 1045 671 43 373 414 313 1131 609 Spaces Moved 8333 | 43 272 16 46 107 442 2427 980 699 721 280 66 484 385 337 539 489 Core 270 | 13 1 . . . . . . . . . . . . . . 256 Treads 1363 | . 243 16 46 107 442 509 . . . . . . . . . . Legs 764 | 30 28 . . . . . . . . . . . . . 513 193 Wheels 1254 | . . . . . . 1254 . . . . . . . . . . Hover 4313 | . . . . . . 664 980 699 721 280 66 484 67 326 26 . Flight 369 | . . . . . . . . . . . . . 318 11 . 40 Fastest Speed 26 | 50 120 320 320 320 240 52 44 53 33 33 45 52 26 29 52 40 Average Speed 102 | 101 230 320 320 320 251 125 48 57 44 73 46 56 52 72 114 79 Slowest Speed 995 | 120 320 320 320 320 480 320 53 58 126 105 106 111 995 365 180 125 Overloaded Moves . | . . . . . . . . . . . . . . . . . Propulsion Burnouts . | . . . . . . . . . . . . . . . . . Robots Hopped 6 | . . . . . . . . . . . . . 4 . . 2 Cave-ins Triggered . | . . . . . . . . . . . . . . . . . Exploration Rate (%) 34 | 3 48 6 10 42 34 59 25 17 63 71 66 53 13 9 44 16 Regions Visited 16 Branch Regions 8 Pre-discovered Areas 1 | . . . . 1 . . . . . . . . . . . . Known Exits Taken 10 | . . . . . . 1 1 1 1 1 1 1 1 1 1 . Unknown Exits Taken 6 | 1 1 1 1 1 1 . . . . . . . . . . . Scrap Searched . | . . . . . . . . . . . . . . . . . Spaces Dug 76 | . . . . . . 22 21 6 13 2 . 1 6 1 3 1 Terrain Destroyed 394 | . . . . . 1 23 21 6 13 2 . 160 8 1 94 65 Melee 72 | . . . . . . 22 21 6 13 2 . . 6 1 . 1 Projectile 29 | . . . . . 1 1 . . . . . 1 2 . 24 . AOE 293 | . . . . . . . . . . . . 159 . . 70 64 Terrain Rammed . | . . . . . . . . . . . . . . . . . Walls Destroyed . | . . . . . . . . . . . . . . . . . Machines Disabled . | . . . . . . . . . . . . . . . . . Actions | -11 -10 -10 -10 -9 -8 -7 -6 -5 -5 -5 -5 -5 -4 -3 -3 -2 --------- Run | Yrd Mat Min Exi Min Mat Fac Fac Fac Ext Cet Arc Hub Fac Res Qua Res Total 11538 | 48 373 16 45 114 623 3086 1239 856 1370 736 73 574 560 404 817 604 Wait 1873 | . 31 . . . 58 388 176 90 460 388 1 55 125 32 38 31 Move 8306 | 42 271 15 45 106 441 2427 979 698 720 279 65 483 376 336 538 485 Hop 6 | . . . . . . . . . . . . . 4 . . 2 Pick Up 181 | . 18 1 . 1 32 43 12 11 8 13 . 2 7 6 21 6 Fast Attach 128 | 6 5 . . . 6 30 6 7 4 8 . 3 9 3 30 11 Attach 102 | . 2 . . . 11 20 5 4 9 4 1 8 7 7 23 1 Detach 35 | . 2 . . . 1 2 . . 5 3 . 7 5 3 6 1 Swap 47 | . 2 . . . 12 6 7 2 2 2 . 2 1 . 10 1 Drop 222 | . 8 . . . 27 68 19 18 7 21 . 3 7 13 22 9 Fire 209 | . 34 . . 7 35 23 4 . . . . 7 9 . 88 2 Melee 317 | . . . . . . 79 31 26 56 18 3 2 10 4 40 48 Ram 9 | . . . . . . . . . . . 2 2 . . . 5 Kick 2 | . . . . . . . . . . . . . . . . 2 Crush . | . . . . . . . . . . . . . . . . . Escape Stasis 39 | . . . . . . . . . 38 . . . . . 1 . Rewire 62 | . . . . . . . . . 61 . 1 . . . . . Trap . | . . . . . . . . . . . . . . . . . Miscellaneous . | . . . . . . . . . . . . . . . . . Route ------- -11/Scrapyard -10/Materials (discovered 2 exits: [*Mat] / [*Min]) -10/Mines -10/Exiles -9/Mines -8/Materials -7/Factory -6/Factory (discovered 4 exits: *Fac x4) -5/Factory (discovered 4 exits: *Upp x2 / *Ext x2) -5/Extension (discovered 2 exits: *Fac / *Cet) -5/Cetus (discovered 2 exits: *Fac / *Arc) -5/Archives -5/Hub_04(d) (discovered 4 exits: *Fac x4) -4/Factory (discovered 4 exits: *Res / Upp x2 / Arm) -3/Research -3/Quarantine -2/Research History --------- Turn | Location | Event 8 | -11/Scrapyard | Discovered new exit (range 16) 53 | -11/Scrapyard | Entered Materials 316 | -10/Materials | Build established: Mutant 457 | -10/Materials | Discovered new exit (range 7) 764 | -10/Materials | Discovered new exit (range 16) 846 | -10/Materials | Entered Mines 853 | -10/Mines | Received a Rocket Launcher from a helpful Derelict 876 | -10/Mines | Deemed a non-threat by the Exiles lab entrance 876 | -10/Mines | Discovered new exit (range 5) 895 | -10/Mines | Entered Exiles 975 | -10/Exiles | Met 8R-AWN 1004 | -10/Exiles | Discovered new exit (range 14) 1039 | -10/Exiles | Entered Mines 1068 | -9/Mines | Learned Materials trap positions 1245 | -9/Mines | Learned location of Storage (-9) 1353 | -9/Mines | Discovered new exit (range 14) 1401 | -9/Mines | Entered Materials 1401 | -8/Materials | Evolved 4 slots: Propulsion x1, Utility x1, Weapon x2 1402 | -8/Materials | Loaded intel: 24 trap records 1690 | -8/Materials | Build established: Gunner 2470 | -8/Materials | Build established: Scavenger-Gunner 2591 | -8/Materials | Discovered new exit (range 14) 2774 | -8/Materials | Entered Factory 2774 | -7/Factory | Evolved 2 slots: Utility x2 3081 | -7/Factory | Build established: Tank 3098 | -7/Factory | Fabricated Antimatter Reactor (x2) 3139 | -7/Factory | Fabricated Impact Mace (x1) 3631 | -7/Factory | Cargo convoy interrupted 4167 | -7/Factory | System corruption reached 10% 4454 | -7/Factory | Build established: Mutant 5726 | -7/Factory | Repaired Greatsword 6274 | -7/Factory | Garrison activated, responded to threat 6537 | -7/Factory | Build established: Scavenger-Mutant 6671 | -7/Factory | Discovered new exit (range 5) 6676 | -7/Factory | Identified exit to Factory 6680 | -7/Factory | Entered another Factory area 6680 | -6/Factory | Evolved 2 slots: Propulsion x2 6760 | -6/Factory | Identified exit to Factory 6886 | -6/Factory | Repaired Gravmag System 7139 | -6/Factory | Build established: Skirmisher 7441 | -6/Factory | Cargo convoy interrupted 7469 | -6/Factory | Entered another Factory area 7469 | -5/Factory | Evolved 2 slots: Utility x2 7560 | -5/Factory | Identified exit to DSF 7620 | -5/Factory | Identified exit to Upper Caves 7620 | -5/Factory | Identified exit to Extension 7778 | -5/Factory | Build established: Gladiator 8062 | -5/Factory | Entered Extension 8088 | -5/Extension | Rescued a captive Derelict 8185 | -5/Extension | Lost 5 parts (1p2u2w) 8565 | -5/Extension | Build established: Commander-Gladiator 8670 | -5/Extension | Rescued a captive Derelict 8671 | -5/Extension | Rescued a captive Derelict 8672 | -5/Extension | Lost 4 allies 8731 | -5/Extension | Rescued a captive Derelict 8732 | -5/Extension | Rescued a captive Derelict 8753 | -5/Extension | Rescued a captive Derelict 8861 | -5/Extension | Rescued a captive Derelict 8862 | -5/Extension | Rescued a captive Derelict 8873 | -5/Extension | Lost 3 allies 8882 | -5/Extension | Rescued a captive Derelict 8883 | -5/Extension | Rescued a captive Derelict 8928 | -5/Extension | Rescued A7 8975 | -5/Extension | Build established: Sprinter 9010 | -5/Extension | Discovered new exit (range 10) 9011 | -5/Extension | Discovered new exit (range 6) 9020 | -5/Extension | Identified exit to Factory 9031 | -5/Extension | Identified exit to Cetus 9107 | -5/Extension | Entered Cetus 9107 | -5/Cetus | Accompanied by 6 allies (A7) 9112 | -5/Cetus | Acquired a Cetus Manufacturing Module code from A7 9117 | -5/Cetus | Spotted Cetus Guard 9117 | -5/Cetus | Spotted Cetus Guard 9117 | -5/Cetus | Spotted Cetus Guard 9117 | -5/Cetus | Spotted Cetus Guard 9126 | -5/Cetus | Allies destroyed Cetus Guard 9128 | -5/Cetus | Allies destroyed Cetus Guard 9137 | -5/Cetus | Allies destroyed Cetus Guard 9142 | -5/Cetus | Allies destroyed Cetus Guard 9195 | -5/Cetus | Started Cetus Manufacturing Module 9220 | -5/Cetus | Manufactured an Enhanced Grunt 9245 | -5/Cetus | Manufactured an Enhanced Grunt 9270 | -5/Cetus | Manufactured an Enhanced Grunt 9295 | -5/Cetus | Manufactured an Enhanced Grunt 9301 | -5/Cetus | Cetus Manufacturing Module disabled 9317 | -5/Cetus | Escorted A7 to Cetus Mainframe 9338 | -5/Cetus | Lost 4 allies 9350 | -5/Cetus | Discovered new exit (range 15) 9392 | -5/Cetus | Spotted Cetus Guard 9392 | -5/Cetus | Spotted Cetus Guard 9402 | -5/Cetus | Allies destroyed Cetus Guard 9405 | -5/Cetus | Spotted Cetus Guard 9405 | -5/Cetus | Spotted Cetus Guard 9409 | -5/Cetus | Allies destroyed Cetus Guard 9411 | -5/Cetus | Allies destroyed Cetus Guard 9416 | -5/Cetus | Allies destroyed Cetus Guard 9434 | -5/Cetus | Murdered A7 9434 | -5/Cetus | Destroyed A7 9435 | -5/Cetus | Extracted ID and sensor layout for unrecognized location from A7's data core 9452 | -5/Cetus | Found Prototype Protection 9452 | -5/Cetus | Identified Med. Regenerative Plating 9492 | -5/Cetus | Discovered exit to Factory (range 16) 9495 | -5/Cetus | Met Revision 17 9533 | -5/Cetus | Identified exit to Archives 9724 | -5/Cetus | Build established: Scavenger-Mutant 9778 | -5/Cetus | Entered Archives 9778 | -5/Archives | Accompanied by 3 allies 9805 | -5/Archives | Discovered new exit (range 15) 9812 | -5/Archives | Identified exit to Hub_04(d) 9821 | -5/Archives | Entered Hub_04(d) 9850 | -5/Hub_04(d) | Lost 3 allies 9896 | -5/Hub_04(d) | Discovered exit to Factory (range 15) 9944 | -5/Hub_04(d) | Network Hub disabled 10151 | -5/Hub_04(d) | Spotted Lightning 10173 | -5/Hub_04(d) | Spotted Lightning 10173 | -5/Hub_04(d) | Spotted Lightning 10173 | -5/Hub_04(d) | Spotted Lightning 10176 | -5/Hub_04(d) | System corruption reached 10% 10177 | -5/Hub_04(d) | Network Hub disabled 10194 | -5/Hub_04(d) | Entered Factory 10194 | -4/Factory | Evolved 2 slots: Propulsion x2 10388 | -4/Factory | Lost 3 parts (1p1n1u) 10444 | -4/Factory | First assault squad dispatched 10503 | -4/Factory | Identified exit to Upper Caves 10503 | -4/Factory | Identified exit to Armory 10544 | -4/Factory | Discovered new exit (range 5) 10607 | -4/Factory | Identified exit to Research 10608 | -4/Factory | Entered Research 10608 | -3/Research | Evolved 2 slots: Power x1, Utility x1 10667 | -3/Research | Found Enh. Force Lance 10877 | -3/Research | Found Enh. Force Lance 10907 | -3/Research | Build established: Mutant 10918 | -3/Research | Discovered new exit (range 8) 10921 | -3/Research | Identified exit to Quarantine 10921 | -3/Research | Entered Quarantine 10931 | -3/Quarantine | Found Alien Artifact 10931 | -3/Quarantine | Identified Phase Redirector 10959 | -3/Quarantine | Garrison activated, responded to threat 11005 | -3/Quarantine | Lost 3 parts (1p1n1u) 11049 | -3/Quarantine | Lost 3 parts (1n2u) 11171 | -3/Quarantine | First assault squad dispatched 11300 | -3/Quarantine | Lost 3 parts (3u) 11390 | -3/Quarantine | Build established: Scavenger-Tank 11644 | -3/Quarantine | Core integrity fell below 50% 11668 | -3/Quarantine | Lost 4 parts (1p2u1w) 11757 | -3/Quarantine | System corruption reached 10% 11808 | -3/Quarantine | Lost 11 parts (1p3n4u3w) 11887 | -3/Quarantine | Discovered new exit (range 8) 11911 | -3/Quarantine | Identified exit to Research 11951 | -3/Quarantine | Found Alien Artifact 11951 | -3/Quarantine | Identified Subatomic Replicator 11995 | -3/Quarantine | Found Alien Slashing Weapon 11995 | -3/Quarantine | Identified Sigix Broadsword 12028 | -3/Quarantine | Scanned by Researcher 12052 | -3/Quarantine | Entered Research 12052 | -2/Research | Evolved 2 slots: Utility x2 12186 | -2/Research | Used Subatomic Replicator to replicate Sigix Broadsword 12299 | -2/Research | Build established: Scavenger-Mutant 12337 | -2/Research | Spotted B-90 Cyclops 12401 | -2/Research | Garrison activated, responded to threat 12480 | -2/Research | Found Fusion Bomb Launcher 12483 | -2/Research | Found Fusion Bomb Launcher 12487 | -2/Research | Found Fusion Bomb Launcher 12496 | -2/Research | Found Fusion Bomb Launcher 12498 | -2/Research | Found Fusion Bomb Launcher 12529 | -2/Research | Lost 15 parts (1p4n4u6w) 12550 | -2/Research | Core integrity fell below 50% 12550 | -2/Research | System corruption reached 10% 12552 | -2/Research | First assault squad dispatched 12620 | -2/Research | Core integrity fell below 20% 12661 | -2/Research | Destroyed by P-80 Master with Gamma Rifle Last Messages --------------- 12612_ Impulse Thruster destroyed. 12612_ Slug penetrates Wall. 12613_ Penetrated by Slug. 12614_ System corrupted: Adv. Coolant Injector rejected. 12615_ Slug penetrates Wall. 12615_ Penetrated by Slug. 12619_ Meson Extractor disabled. 12619_ Penetrated by Slug. 12627_ Slug penetrates K-01 Serf. 12628_ ALERT: Cargo convoy en route, clear transfer corridor. 12637_ System corrupted: IFF burst signal emitted. 12645_ O-32 Director: "IFF HANDSHAKE FAILED. SECURING TERMINAL." 12646_ Acquired Impulse Thruster Array. 12652_ Acquired System Shield. 12652_ Emergency Access malfunctions. 12659_ Penetrated by Slug. Map ----- +----------------------------------------------------+ | ?????????????????????????????????????????????????? | | ?????????????????????????????????????????????????? | | ?????????????????????????????????????????????????? | | ?????????????????????????????????????????????????? | | ?????????????????????????????????????????????????? | | ?????????????????????????????????????????????????? | | ?????????????????????????????????????????????????? | | ???????????????????????????? ???????????????????? | | ??????????????????????????? ????????????????#### | | ???????????????????????????# ????????????????# | | ???????????????????????????# #???????????????# | | ??????????????????????????## ##??????????????# | | ??????????????????????????+ #??????????????# | | ??????????????????????????# #??????????????# | | ??????????????????????????# #??????????????# | | ??????????????????????????# #??????????????# | | ?????########?????????????# #??????????????? | | ?????# #?????????????# #????????????????? | | ?????# #?????????????# ################### | | ####?# #?????????????# ^ | | ### ! ######????????# | | + / + #????????# | | * ### # #????????# " " | | ####+##### p ########## ########### ^ """ | | + p hh #?????????# """ | | # @ #??######## | | # #??# | | + #??# | | #########################+##??# // | | ####?????????????????????????????# /! | | ?????????????????????????????????# | | ?????????????????????????????????# | | ?????????????????????????????????# | | ?????????????????????????????????# ####### #### | | ?????????????????????????????????# ??????# #??? | | ?????????????????????????????????# ??????? #??? | | ?????????????????????????????????# ????????+#??? | | ?????????????????????????????????# ????????????? | | ?????????????????????????????????# ?????????????? | | ?????????????????????????????????? ??????????????? | | ?????????????????????????????????????????????????? | | ?????????????????????????????????????????????????? | | ?????????????????????????????????????????????????? | | ?????????????????????????????????????????????????? | | ?????????????????????????????????????????????????? | | ?????????????????????????????????????????????????? | | ?????????????????????????????????????????????????? | | ?????????????????????????????????????????????????? | | ?????????????????????????????????????????????????? | | ?????????????????????????????????????????????????? | +----------------------------------------------------+ Best States ------------- Heat Dissipation 80 Coolant Potential 200 Energy Generation 49 Energy Capacity 635 Matter Stores 350 Matter Capacity 450 Sight Range 16 Robot Scan Range 15 Terrain Scan Density 10 Power Amplification 30 Additional Mass Support 6 Armor Coverage 900 Resistance: EX 50 Propulsion Shielding 66 Utility Shielding 66 Weapon Cycling 25 Melee Speed Boost 40 Phase Shifting 10 Evasion (%) 65 Targeting Accuracy 8 Melee Accuracy 8 Target Analysis 12 Armor Integrity Analysis 40 Recoil Reduction 3 Particle Charging 25 Offensive Hacking 14 Defensive Hacking 14 Item Schematics ----------------- Prc. Matter Filter | -3/Quarantine | Archive Exp. Targeting Computer | -3/Quarantine | Archive Robot Schematics ------------------ K-01 Serf | -3/Quarantine | Archive Fabricated ------------ Antimatter Reactor | x2 | -7/Factory | Preloaded Impact Mace | x1 | -7/Factory | Preloaded Alien Tech Used ----------------- Phase Redirector Subatomic Replicator Sigix Broadsword Achievements -------------- None Challenges ------------ None Game ------ Seed HeartDerelictBank Manual? 0 Play Time 01:55:31 Cumulative 454.2 hours Start 2024.04.06 @ 19:11:53 End 2024.04.07 @ 19:20:30 Sessions 5 Manual Loads 0 Difficulty Rogue Special Mode None Game No. 780 Rogue 625 Adventurer 148 Explorer 7 Win Type - Total 20 Types 16/1/2/1/0/0/0/0/0 Lore% 77 Gallery% 89 Achievement% 74 Wizard Run 0 Options --------- Layout 1 ASCII 0 Keyboard 0 Movement Numpad Keybinds 0 Fullscreen 2 Font 24/Smallcaps Map View 50x35 Zoom Use 0% Tactical HUD 1 Map Filters NONE Filters NONE Steam 1 RUN: 649b649c-fe23-49a1-8ee7-917f2024b5c4